fUST/lending_fUST_20240816
["ID","MTS","AMOUNT","RATE_DAILY","PERIOD"]
[335023862,1723755038702,-154.7755785,0.00012898,2]
[335023863,1723755038712,-440.2244215,0.0002101,2]
[335023864,1723755038732,-2093.50584346,0.0002101,2]
[335023865,1723755038741,-5850.0,0.0002102,2]
[335023866,1723755038751,-209.48381489,0.00024455,2]
[335023867,1723755038760,-10337.19273734,0.00024571,2]
[335023868,1723755038770,-811.29744717,0.00024658,2]
[335023869,1723755038779,-1711.51165113,0.00024688,2]
[335023875,1723755040603,-154.77557542,0.0002469,2]
[335023877,1723755040613,-271.33563937,0.00024756,2]
[335023879,1723755040622,-164.775977,0.00025405,2]
[335023880,1723755040635,-137.34280821,0.00025466,2]
[335023881,1723755040659,-37.41391415,0.00025466,2]
[335023882,1723755040669,-154.7755785,0.00025466,2]
[335023883,1723755040678,-1020.78490647,0.00025466,2]
[335023884,1723755040687,-178.49721722,0.0003,5]
[335023885,1723755040696,-5323.40502986,0.00032063,2]
[335023886,1723755040705,-1715.14009973,0.000322,2]
[335023887,1723755040762,-5187.91878414,0.000322,2]
[335024014,1723755046658,-2606.26346968,0.00024662,2]
[335024015,1723755046667,-255.14803888,0.00024688,2]
[335024016,1723755046676,-778.65028017,0.000321,2]
[335024017,1723755046686,-3447.19640009,0.000322,2]
[335024018,1723755046696,-10350.25528394,0.0003225,2]
[335024019,1723755046705,-150.112233,0.000323,7]
[335024020,1723755046714,-10350.25528394,0.000323,2]
[335024021,1723755046725,-10350.25528394,0.0003235,2]
[335024022,1723755046734,-703.06,0.0003237,3]
[335024023,1723755046744,-585.89,0.0003237,3]
[335024024,1723755046754,-31561.7306177,0.0003238,4]
[335024025,1723755046763,-150.112233,0.000324,10]
[335024026,1723755046774,-150.112233,0.000324,9]
[335024027,1723755046784,-150.112233,0.000324,6]
[335024028,1723755046792,-150.112233,0.000324,6]
[335024029,1723755046802,-150.112233,0.000324,7]
[335024030,1723755046811,-150.112233,0.000324,6]
[335024031,1723755046821,-150.112233,0.000324,7]
[335024032,1723755046830,-150.112233,0.000324,7]
[335024033,1723755046839,-150.112233,0.000324,10]
[335024034,1723755046848,-150.112233,0.000324,9]
[335024035,1723755046858,-150.112233,0.000324,8]
[335024036,1723755046867,-150.112233,0.000324,6]
[335024037,1723755046877,-807.46643268,0.000324,2]
[335024038,1723755046886,-10350.25528394,0.000324,2]
[335024039,1723755046895,-488.24,0.00032469,3]
[335024040,1723755046905,-219.59047603,0.00032479,2]
[335024041,1723755046914,-500.0,0.00032479,2]
[335024042,1723755046923,-500.0,0.00032479,2]
[335024043,1723755046932,-500.0,0.00032479,2]
[335024044,1723755046941,-500.0,0.00032479,2]
[335024045,1723755046951,-500.0,0.00032479,2]
[335024046,1723755046961,-500.0,0.00032479,2]
[335024047,1723755046970,-500.0,0.00032479,2]
[335024048,1723755046980,-500.0,0.00032479,2]
[335024049,1723755046989,-500.0,0.00032479,2]
[335024050,1723755046999,-500.0,0.00032479,2]
[335024051,1723755047009,-500.0,0.00032479,2]
[335024052,1723755047018,-500.0,0.00032479,2]
[335024053,1723755047028,-500.0,0.00032479,2]
[335024054,1723755047037,-500.0,0.00032479,2]
[335024055,1723755047047,-500.0,0.00032479,2]
[335024056,1723755047057,-500.0,0.00032479,2]
[335024057,1723755047069,-500.0,0.00032479,2]
[335024058,1723755047079,-500.0,0.00032479,2]
[335024059,1723755047088,-500.0,0.00032479,2]
[335024060,1723755047098,-500.0,0.00032479,2]
[335024061,1723755047108,-500.0,0.00032479,2]
[335024062,1723755047117,-500.0,0.00032479,2]
[335024063,1723755047127,-475.39632036,0.00032479,2]
[335024064,1723755047136,-31561.7306177,0.0003248,4]
[335024065,1723755047146,-281.07777965,0.00032489,2]
[335024066,1723755047156,-500.0,0.00032489,2]
[335024067,1723755047165,-169.83573654,0.00032489,2]
[335024068,1723755047175,-500.0,0.00032489,2]
[335024069,1723755047184,-500.0,0.00032489,2]
[335024070,1723755047193,-500.0,0.00032489,2]
[335024071,1723755047203,-500.0,0.00032489,2]
[335024072,1723755047212,-500.0,0.00032489,2]
[335024073,1723755047221,-500.0,0.00032489,2]
[335024074,1723755047239,-500.0,0.00032489,2]
[335024075,1723755047249,-191.21377716,0.00032489,2]
[335024076,1723755047258,-500.0,0.00032489,2]
[335024077,1723755047268,-500.0,0.00032489,2]
[335024078,1723755047277,-500.0,0.00032489,2]
[335024079,1723755047287,-500.0,0.00032489,2]
[335024080,1723755047296,-500.0,0.00032489,2]
[335024081,1723755047306,-650.0,0.00032489,2]
[335024082,1723755047315,-43333.10570976,0.0003249,11]
[335024083,1723755047327,-151.0,0.0003249,7]
[335024084,1723755047337,-151.0,0.0003249,7]
[335024085,1723755047346,-151.0,0.0003249,7]
[335024086,1723755047356,-151.0,0.0003249,7]
[335024087,1723755047366,-151.0,0.0003249,7]
[335024088,1723755047375,-151.0,0.0003249,7]
[335024089,1723755047385,-396.720678,0.0003249,7]
[335024090,1723755047395,-396.720678,0.0003249,7]
[335024091,1723755047404,-151.0,0.0003249,7]
[335024092,1723755047414,-568.28279,0.0003249,7]
[335024093,1723755047423,-568.28279,0.0003249,7]
[335024094,1723755047433,-151.0,0.0003249,7]
[335024095,1723755047442,-151.0,0.0003249,7]
[335024096,1723755047452,-151.0,0.0003249,7]
[335024097,1723755047463,-763.247207,0.0003249,7]
[335024098,1723755047472,-763.247207,0.0003249,7]
[335024099,1723755047482,-718.226197,0.0003249,7]
[335024100,1723755047491,-718.226197,0.0003249,7]
[335024101,1723755047500,-718.226197,0.0003249,7]
[335024102,1723755047509,-718.226197,0.0003249,7]
[335024103,1723755047519,-322.928036,0.0003249,7]
[335024104,1723755047527,-322.928036,0.0003249,7]
[335024105,1723755047537,-322.928036,0.0003249,7]
[335024106,1723755047546,-322.928036,0.0003249,7]
[335024107,1723755047555,-213.97388,0.0003249,7]
[335024108,1723755047566,-151.0,0.0003249,7]
[335024109,1723755047575,-1123.983926,0.0003249,7]
[335024110,1723755047585,-1123.983926,0.0003249,7]
[335024111,1723755047594,-189370.383706,0.0003249,4]
[335024112,1723755047603,-151.0,0.0003249,7]
[335024113,1723755047612,-465.230054,0.0003249,7]
[335024114,1723755047622,-465.230054,0.0003249,7]
[335024115,1723755047631,-151.0,0.0003249,7]
[335024116,1723755047640,-151.0,0.0003249,7]
[335024117,1723755047649,-338.039503,0.0003249,7]
[335024118,1723755047659,-338.039503,0.0003249,7]
[335024119,1723755047669,-273.144428,0.0003249,7]
[335024120,1723755047679,-273.144428,0.0003249,7]
[335024121,1723755047688,-151.0,0.0003249,7]
[335024122,1723755047698,-151.0,0.0003249,7]
[335024123,1723755047707,-189.272307,0.0003249,7]
[335024124,1723755047716,-189.272307,0.0003249,7]
[335024125,1723755047726,-734.487708,0.0003249,7]
[335024126,1723755047735,-734.487708,0.0003249,7]
[335024127,1723755047745,-151.0,0.0003249,2]
[335024128,1723755047754,-151.0,0.0003249,7]
[335024129,1723755047764,-523856.81315408,0.000325,60]
[335024130,1723755047785,-40329.35703523,0.000325,60]
[335024147,1723755944144,-155.46941573,0.00012999,2]
[335024148,1723755944166,-180.67948358,0.00013025,2]
[335024149,1723755944186,-154.76012181,0.00013025,2]
[335024150,1723755944206,-157.00320308,0.00013051,2]
[335024151,1723755944226,-148.9364823,0.00013051,2]
[335024157,1723756015120,-248.4958209,0.00012971,2]
[335024158,1723756049093,-156.07985241,0.00012991,2]
[335024159,1723756049117,-223.38199524,0.00012999,2]
[335024160,1723756049140,-569.05372197,0.00012999,2]
[335024161,1723756049162,-155.6631912,0.00012999,2]
[335024162,1723756049184,-636.72640188,0.00013025,2]
[335024163,1723756049207,-154.76012181,0.00013051,2]
[335024164,1723756049229,-218.62299037,0.00013051,2]
[335024165,1723756049251,-377.66135017,0.00013051,2]
[335024166,1723756049273,-160.19095557,0.00013477,2]
[335024167,1723756049295,-665.04001235,0.00013597,2]
[335024168,1723756049316,-494.54531599,0.00013698,2]
[335024169,1723756049338,-728.34861839,0.00013698,2]
[335024170,1723756049369,-288.10768054,0.00014245,2]
[335024171,1723756049391,-164.775977,0.00014247,2]
[335024172,1723756049413,-154.79103211,0.00014519,2]
[335024173,1723756049434,-200.0,0.00014519,2]
[335024174,1723756049457,-237.630121,0.00016722,2]
[335024175,1723756049480,-3434.831989,0.00017025,2]
[335024176,1723756049504,-3000.0,0.00021,2]
[335024177,1723756049526,-3000.0,0.0002101,2]
[335024178,1723756049549,-3000.0,0.0002102,2]
[335024179,1723756049572,-3000.0,0.0002103,2]
[335024180,1723756049595,-3000.0,0.0002104,2]
[335024181,1723756049617,-3000.0,0.0002105,2]
[335024182,1723756049639,-3000.0,0.0002106,2]
[335024183,1723756049660,-4315.871766,0.0002107,2]
[335024184,1723756049684,-178.38845798,0.00024442,2]
[335024185,1723756049706,-5242.02170044,0.00024662,2]
[335024186,1723756049729,-500.0,0.00024755,2]
[335024187,1723756049752,-500.0,0.00024755,2]
[335024188,1723756049774,-500.0,0.00024755,2]
[335024189,1723756049796,-500.0,0.00024755,2]
[335024190,1723756049820,-647.53963204,0.00024755,2]
[335024191,1723756049849,-500.0,0.00024755,2]
[335024192,1723756049869,-1656.60546534,0.00024756,2]
[335024193,1723756049891,-2066.57373194,0.00024814,2]
[335024194,1723756049911,-237.630121,0.00025083,2]
[335024195,1723756049935,-162.972932,0.00027254,2]
[335024196,1723756049958,-164.775977,0.00027884,2]
[335024197,1723756049980,-1664.17041105,0.00032337,20]
[335024198,1723756050000,-14631.73877102,0.00032379,2]
[335024199,1723756050021,-191.89419047,0.0003239,2]
[335024200,1723756050044,-191.89419047,0.00032394,2]
[335024201,1723756050066,-191.89419047,0.00032398,2]
[335024202,1723756050087,-881.25008103,0.000324,2]
[335024203,1723756050110,-262.75,0.0003248,3]
[335024204,1723756050130,-262.75,0.0003248,3]
[335024205,1723756050152,-500.0,0.00032489,2]
[335024206,1723756050173,-196.75444576,0.00032489,2]
[335024207,1723756050194,-500.0,0.00032489,2]
[335024208,1723756050215,-500.0,0.00032489,2]
[335024209,1723756050238,-500.0,0.00032489,2]
[335024210,1723756050263,-500.0,0.00032489,2]
[335024211,1723756050285,-488.84964402,0.00032489,2]
[335024212,1723756050307,-500.0,0.00032489,2]
[335024213,1723756050329,-500.0,0.00032489,2]
[335024214,1723756050356,-500.0,0.00032489,2]
[335024215,1723756050381,-500.0,0.00032489,2]
[335024216,1723756050406,-237659.05295784,0.0003249,4]
[335024217,1723756051379,-23593.52056016,0.0003249,4]
[335024218,1723756051401,-195.33037482,0.00032498,2]
[335024219,1723756051423,-49926.96488381,0.000325,60]
[335024273,1723756147124,-601.87255041,0.00014519,2]
[335024274,1723756147145,-1265.1190936,0.00015722,2]
[335024275,1723756147168,-83.42108521,0.00015722,2]
[335024276,1723756148092,-71.3390366,0.00015722,2]
[335024279,1723756162860,154.76012181,0.00014519,2]
[335024282,1723756178538,175.83567926,0.00015722,2]
[335024283,1723756178560,4.33894319,0.00015722,2]
[335024344,1723756233570,-200.43693464,0.00015722,2]
[335024345,1723756233580,-423.77406536,0.00032337,20]
[335024346,1723756233597,-618.62757271,0.00032337,20]
[335024392,1723756239070,-621.60262178,0.00032337,20]
[335024394,1723756239080,-409.78,0.0003248,3]
[335024396,1723756239089,-341.49,0.0003248,3]
[335024398,1723756239098,-349.72662578,0.00032489,2]
[335024400,1723756239108,-9446.96871329,0.0003249,4]
[335024402,1723756239119,-1653.50888363,0.0003249,4]
[335024404,1723756239131,-2525.0,0.0003249,4]
[335024448,1723756239574,-2562.06944601,0.0003249,4]
[335024542,1723756240816,-218939.76912307,0.0003249,4]
[335024544,1723756240826,-32282.4828304,0.000325,11]
[335024545,1723756240835,-51327.86028927,0.000325,60]
[335024546,1723756240880,-8190.64620209,0.000325,60]
[335024547,1723756240891,-365.54207905,0.000325,60]
[335024548,1723756240902,-9235.25873497,0.000325,60]
[335024549,1723756240914,-8511.6,0.000325,60]
[335024550,1723756240934,-799.46859797,0.000325,60]
[335024551,1723756240947,-767.1650946,0.000325,60]
[335024571,1723756243971,-3500.0,0.000325,60]
[335024572,1723756243983,-6764.70176947,0.000325,60]
[335024573,1723756244087,-3019.84928903,0.000325,60]
[335024590,1723756246777,-1909.86962629,0.000325,60]
[335024591,1723756246788,-6699.16748496,0.000325,60]
[335024594,1723756247297,-47555.78943265,0.000325,60]
[335024595,1723756247319,-347.0,0.000325,60]
[335024596,1723756247341,-317315.39060641,0.000325,60]
[335024637,1723757236142,-397.32297291,0.00012989,2]
[335024638,1723757236167,-155.15250678,0.00012989,2]
[335024639,1723757236195,-189.9631639,0.00012991,2]
[335024640,1723757236226,-510.14346935,0.00012991,3]
[335024641,1723757236254,-636.72640188,0.00012991,2]
[335024642,1723757236283,-160.66884839,0.00012991,2]
[335024643,1723757236309,-154.76012181,0.00012999,2]
[335024644,1723757236335,-180.86518133,0.00012999,2]
[335024645,1723757236364,-38.77741436,0.00013477,2]
[335024646,1723757327692,3446.11268145,0.0001,2]
[335024651,1723757347106,-251.64143621,0.00013,2]
[335024652,1723757347130,-1670.74719108,0.00013477,2]
[335024653,1723757347153,-271.18563857,0.00013477,2]
[335024654,1723757347176,-157.90795043,0.00013596,2]
[335024655,1723757347198,-154.98751606,0.00013597,2]
[335024656,1723757347222,-13617.4270947,0.0001367,2]
[335024657,1723757347243,-70643.84599339,0.0001368,2]
[335024659,1723757354106,-19375.37978585,0.0001368,2]
[335024660,1723757356113,-9018.49912003,0.0001368,2]
[335024661,1723757356136,-223.38199524,0.00014245,2]
[335024662,1723757356159,-158.398483,0.00014247,2]
[335024663,1723757356181,-154.83744237,0.00014519,2]
[335024664,1723757356205,-262.5596185,0.00014519,2]
[335024665,1723757356226,-504.14303749,0.00015,2]
[335024666,1723757356248,-3943.37287429,0.00018,2]
[335024667,1723757356269,-4868.50642118,0.00018447,2]
[335024714,1723757432169,-135.80079397,0.00018447,2]
[335024715,1723757432179,-150.0,0.00021,2]
[335024717,1723757432189,-157.14199098,0.000212,30]
[335024719,1723757432200,-302.57643837,0.00022,2]
[335024720,1723757432209,-151.45437039,0.0002222,2]
[335024722,1723757432219,-162.972932,0.00023959,2]
[335024724,1723757432229,-18940.03918098,0.00024,60]
[335024845,1723757438079,-200.0,0.00014519,2]
[335024847,1723757438090,-2341.50000001,0.00024,60]
[335024849,1723757438103,-628.88032899,0.00024,60]
[335024852,1723757438116,-18531.26580061,0.00024,60]
[335024854,1723757438129,-42905.33051343,0.00024,60]
[335024856,1723757438138,-1175.98912235,0.00024499,2]
[335024858,1723757438148,-4653.5857696,0.00024599,2]
[335024860,1723757438159,-158.398483,0.00025405,2]
[335024862,1723757438168,-714.99539556,0.00028051,2]
[335024864,1723757438178,-1175.98912235,0.00028671,2]
[335024866,1723757438187,-3119.62182307,0.00028997,5]
[335024868,1723757438196,-804.56182243,0.0003,5]
[335024870,1723757438206,-1000.0,0.00031,31]
[335024873,1723757438216,-1000.0,0.00032,32]
[335024875,1723757438226,-5323.40502986,0.00032214,2]
[335024877,1723757438236,-150.0,0.00032265,2]
[335024879,1723757438247,-793.1250729,0.000324,2]
[335024881,1723757438257,-500.0,0.00032489,2]
[335024882,1723757438266,-492.19475081,0.00032489,2]
[335024884,1723757438275,-500.0,0.00032489,2]
[335024886,1723757438285,-500.0,0.00032489,2]
[335024888,1723757438294,-500.0,0.00032489,2]
[335024889,1723757438304,-500.0,0.00032489,2]
[335024891,1723757438313,-500.0,0.00032489,2]
[335024893,1723757438324,-13617.4270947,0.0003249,4]
[335024895,1723757438333,-21449.20640295,0.0003249,11]
[335024897,1723757438345,-20868.59349402,0.0003249,4]
[335024923,1723757440289,-291.34,0.0003248,3]
[335024924,1723757440299,-42446.91,0.0003249,4]
[335024925,1723757440311,-678.8990031,0.0003249,4]
[335024933,1723757442913,-255.0,0.0003249,4]
[335024942,1723757443832,-5812.51622582,0.0003249,4]
[335024943,1723757443845,-4063.84022575,0.0003249,4]
[335024954,1723757445969,-116518.22037631,0.0003249,4]
[335024956,1723757445979,-169.20621794,0.00032497,2]
[335024958,1723757445989,-4252.27494749,0.00032497,2]
[335024959,1723757445998,-344418.3234158,0.000325,60]
[335024960,1723757446009,-201973.81022441,0.000325,60]
[335024963,1723757446054,-39.80434141,0.000325,60]
[335024965,1723757505671,269.54909522,0.00014519,7]
[335024981,1723758342142,-307.4149758,0.00013477,2]
[335024982,1723758342168,-154.98751606,0.00013596,2]
[335024983,1723758342189,-157.90795043,0.00013597,2]
[335024984,1723758342210,-158.398483,0.00014247,2]
[335024985,1723758342232,-271.18563857,0.00014519,2]
[335024986,1723758342254,-1670.74719108,0.00014519,2]
[335024987,1723758342274,-175.83567926,0.00014519,2]
[335024988,1723758342296,-300.0,0.00016395,2]
[335024989,1723758342316,-3000.0,0.00016396,2]
[335024990,1723758342338,-1110.12328868,0.00017025,2]
[335024991,1723758342359,-154.89911116,0.00017025,2]
[335024992,1723758342381,-514.30036347,0.00017259,2]
[335024993,1723758342403,-12271.56964434,0.00017696,2]
[335024995,1723758437089,-242.43800807,0.00019078,2]
[335024996,1723758442106,-355.8743226,0.00019078,2]
[335025002,1723758548135,-251.0,0.00019178,2]
[335025003,1723758553098,-5249.72618408,0.00019472,2]
[335025047,1723758638486,-8955.97971592,0.00019472,2]
[335025048,1723758638496,-162.972932,0.00019495,2]
[335025049,1723758638507,-10375.83718317,0.0002,2]
[335025050,1723758638516,-4152.2093053,0.0002,2]
[335025051,1723758638525,-156.56267046,0.0002,2]
[335025052,1723758638535,-929.11119531,0.0002091,2]
[335025053,1723758638554,-3000.0,0.00021,2]
[335025054,1723758638566,-3000.0,0.0002101,2]
[335025055,1723758638576,-500.0,0.00021018,2]
[335025056,1723758638586,-500.0,0.00021018,2]
[335025057,1723758638595,-500.0,0.00021018,2]
[335025058,1723758638605,-500.0,0.00021018,2]
[335025059,1723758638615,-500.0,0.00021018,2]
[335025060,1723758638624,-500.0,0.00021018,2]
[335025061,1723758638635,-500.0,0.00021018,2]
[335025062,1723758638644,-500.0,0.00021018,2]
[335025063,1723758638654,-500.0,0.00021018,2]
[335025064,1723758638663,-500.0,0.00021018,2]
[335025065,1723758638673,-500.0,0.00021018,2]
[335025066,1723758638684,-500.0,0.00021018,2]
[335025067,1723758638694,-500.0,0.00021018,2]
[335025068,1723758638703,-500.0,0.00021018,2]
[335025069,1723758638713,-500.0,0.00021018,2]
[335025070,1723758638723,-500.0,0.00021018,2]
[335025071,1723758638733,-500.0,0.00021018,2]
[335025072,1723758638743,-500.0,0.00021018,2]
[335025073,1723758638752,-500.0,0.00021018,2]
[335025074,1723758638763,-500.0,0.00021018,2]
[335025075,1723758638772,-500.0,0.00021018,2]
[335025076,1723758638782,-500.0,0.00021018,2]
[335025077,1723758638792,-500.0,0.00021018,2]
[335025078,1723758638802,-500.0,0.00021018,2]
[335025079,1723758638813,-500.0,0.00021018,2]
[335025080,1723758638823,-500.0,0.00021018,2]
[335025081,1723758638833,-601.93237143,0.00021018,2]
[335025082,1723758638842,-500.0,0.00021018,2]
[335025083,1723758638851,-500.0,0.00021018,2]
[335025084,1723758638861,-500.0,0.00021018,2]
[335025085,1723758638870,-500.0,0.00021018,2]
[335025086,1723758638880,-500.0,0.00021018,2]
[335025087,1723758638889,-500.0,0.00021018,2]
[335025088,1723758638899,-500.0,0.00021018,2]
[335025089,1723758638909,-500.0,0.00021018,2]
[335025090,1723758638919,-500.0,0.00021018,2]
[335025091,1723758638929,-3000.0,0.0002102,2]
[335025092,1723758638939,-3000.0,0.0002103,2]
[335025093,1723758638949,-3000.0,0.0002104,2]
[335025094,1723758638959,-3000.0,0.0002105,2]
[335025095,1723758638969,-3000.0,0.0002106,2]
[335025096,1723758638979,-3000.0,0.0002107,2]
[335025097,1723758638988,-3000.0,0.0002108,2]
[335025098,1723758638998,-3000.0,0.0002109,2]
[335025099,1723758639008,-3000.0,0.000211,2]
[335025100,1723758639017,-3686.568487,0.0002111,2]
[335025101,1723758639027,-929.11119525,0.00025594,2]
[335025102,1723758639037,-158.398483,0.00027884,2]
[335025103,1723758639047,-929.11119525,0.00030279,2]
[335025104,1723758639057,-749.42,0.0003248,3]
[335025105,1723758639067,-10975.30074495,0.0003249,4]
[335025164,1723758643234,-1759.34,0.0003249,3]
[335025165,1723758643244,-490.36776021,0.0003249,4]
[335025167,1723758643784,273.37336231,9.9e-05,2]
[335025190,1723758659083,273.37336231,9.9e-05,2]
[335025191,1723758701741,534.52389159,0.00014519,2]
[335025192,1723758704449,857.0768813,0.00014519,2]
[335025194,1723758718655,494.6780177,0.00014519,2]
[335025195,1723758737004,601.50902274,0.00014519,2]
[335025215,1723759358448,251.90028407,0.00010081,2]
[335025232,1723759549164,-248.4958209,0.00012163,2]
[335025233,1723759549187,-158.398483,0.00014247,2]
[335025234,1723759549209,-377.56059916,0.00021,2]
[335025237,1723759602111,-154.76012181,0.00014519,2]
[335025238,1723759602134,-93.7375502,0.00015,2]
[335025239,1723759746121,-61.02257161,0.00015,2]
[335025240,1723759746144,-2622.43940084,0.00021,2]
[335025241,1723759746165,-623.22572205,0.00027457,2]
[335025242,1723759746186,-162.972932,0.0002852,2]
[335025243,1723759746207,-197.368832,0.0002884,2]
[335025244,1723759746228,-216.689177,0.00029175,2]
[335025252,1723759820707,6196.24830913,0.00025,30]
[335025301,1723759833248,-176.178871,0.000294,2]
[335025302,1723759833258,-300.0,0.0002959,2]
[335025303,1723759833268,-9144.1468737,0.00029591,2]
[335025304,1723759833278,-290.84316921,0.00029616,2]
[335025305,1723759833288,-176.178871,0.00029911,2]
[335025306,1723759833299,-246.5261746,0.00030043,2]
[335025307,1723759833308,-5323.40502986,0.0003013,2]
[335025308,1723759833319,-176.178871,0.00030422,2]
[335025309,1723759833329,-176.178871,0.00030932,2]
[335025310,1723759833339,-158.398483,0.00031781,2]
[335025311,1723759833349,-1664.33659543,0.00032328,20]
[335025312,1723759833360,-1538.07442311,0.00032399,2]
[335025313,1723759833369,-1538.07442311,0.00032399,2]
[335025314,1723759833379,-1538.07442311,0.000324,2]
[335025315,1723759833389,-1538.07442311,0.000324,2]
[335025317,1723759833399,-1538.07442311,0.000324,2]
[335025319,1723759833408,-155.0,0.0003244,27]
[335025321,1723759833418,-500.0,0.00032489,2]
[335025322,1723759833430,-160.19323714,0.00032489,2]
[335025323,1723759833440,-500.0,0.00032489,2]
[335025324,1723759833451,-500.0,0.00032489,2]
[335025325,1723759833618,-500.0,0.00032489,2]
[335025326,1723759833629,-500.0,0.00032489,2]
[335025327,1723759833639,-500.0,0.00032489,2]
[335025328,1723759833650,-500.0,0.00032489,2]
[335025329,1723759833660,-500.0,0.00032489,2]
[335025330,1723759833670,-154.36739597,0.00032489,2]
[335025331,1723759833680,-500.0,0.00032489,2]
[335025332,1723759833691,-500.0,0.00032489,2]
[335025333,1723759833702,-500.0,0.00032489,2]
[335025334,1723759833714,-576.86819692,0.00032489,2]
[335025335,1723759833723,-1466.12,0.0003249,3]
[335025336,1723759833732,-262.99,0.0003249,3]
[335025337,1723759833742,-1221.76,0.0003249,3]
[335025338,1723759833751,-789.02,0.0003249,3]
[335025339,1723759833760,-1018.14,0.0003249,3]
[335025340,1723759833770,-14774.53788995,0.0003249,4]
[335025341,1723759833786,-2963.32263713,0.0003249,4]
[335025354,1723759838571,-33624.83535872,0.0003249,4]
[335025356,1723759838581,-848.53515677,0.00032496,2]
[335025357,1723759838591,-500.0,0.00032499,2]
[335025358,1723759838602,-500.0,0.00032499,2]
[335025360,1723759838612,-500.0,0.00032499,2]
[335025362,1723759838625,-500.0,0.00032499,2]
[335025364,1723759838634,-444.53632557,0.00032499,2]
[335025366,1723759838644,-500.0,0.00032499,2]
[335025368,1723759838654,-300.65918729,0.00032499,2]
[335025370,1723759838664,-236.56991232,0.00032499,10]
[335025372,1723759838674,-12394.15331714,0.000325,11]
[335025374,1723759838684,-60008.99924451,0.000325,60]
[335025420,1723759840435,-848.45,0.0003249,3]
[335025422,1723759840445,-1100.92421069,0.000325,60]
[335025425,1723759840560,-146.67886046,0.000325,60]
[335025461,1723759843348,-525.98,0.0003249,3]
[335025462,1723759843359,-28193.97945076,0.000325,60]
[335025584,1723759846370,-90782.79786402,0.000325,60]
[335025586,1723759846387,-4113.61205602,0.000325,60]
[335025596,1723759849068,300.0,0.00027,120]
[335025597,1723759854329,154.79103211,0.00026999,2]
[335025612,1723759864543,249.30562175,0.00026999,2]
[335025614,1723759868952,160.73794928,0.00026999,2]
[335025615,1723759868983,63.12695669,0.00026999,2]
[335025616,1723759869005,208.20868268,0.00026999,2]
[335025617,1723759869813,143.18116084,0.0002,2]
[335025618,1723759869834,13.38150962,0.0002,2]
[335025619,1723759870848,277.52010074,0.00026999,2]
[335025620,1723759872743,5242.02170044,0.00026999,2]
[335025621,1723759873976,1106.04344165,0.00026999,2]
[335025622,1723759879228,300.0,0.00027,120]
[335025624,1723759906047,245.98,0.00014519,3]
[335025639,1723760687130,154.87957744,0.00014519,4]
[335025640,1723760730155,-200.38569596,0.00012551,2]
[335025644,1723760831228,-2408.37231536,0.00012551,2]
[335025648,1723760926173,3606.1291612,0.0001,2]
[335025650,1723760947143,-1670.74719108,0.00012551,2]
[335025651,1723760947168,-320.08358525,0.00012934,2]
[335025652,1723760947191,-154.81863612,0.00012971,2]
[335025653,1723760947214,-601.50902274,0.00012985,2]
[335025654,1723760947238,-176.3835269,0.00012985,2]
[335025655,1723760947262,-246.93285154,0.00013051,2]
[335025656,1723760947285,-250.0,0.00013264,2]
[335025657,1723760947308,-250.0,0.00013301,2]
[335025658,1723760947330,-250.0,0.00013337,2]
[335025659,1723760947353,-250.0,0.00013374,2]
[335025660,1723760947376,-250.0,0.0001341,2]
[335025661,1723760947401,-250.0,0.00013446,2]
[335025662,1723760947427,-250.0,0.00013483,2]
[335025663,1723760947452,-250.0,0.00013519,2]
[335025664,1723760947476,-250.0,0.00013556,2]
[335025665,1723760947499,-300.0,0.00013591,2]
[335025666,1723760947521,-250.0,0.00013592,2]